Cogmind - Beta 13 @@@ ROGUE MODE // 2024.07.07 @ 22:36:08 Player: APerTAS Result: Destroyed by G-47 Trooper with Particle Gun Performance ------------- Evolutions (2) 1000 Regions Visited (5) 1000 Robots Destroyed (38) 190 Value Destroyed (1022) 1022 Prototype IDs (5) 100 Alien Tech Used (0) 0 Bonus (0) 0 TOTAL SCORE: 3312 Bonus ------- None Cogmind --------- Core Integrity 0/550 Matter 184/300 Energy 100/100 System Corruption 0% Temperature Cool (9) Movement Core (50) Location -8/Materials Parts ------- > --- POWER (1) -------- (None) > --- PROPULSION (3) --- (None) > --- UTILITY (4) ------ (None) > --- WEAPON (3) ------- (None) > --- INVENTORY (5) ---- Mining Claw Peak State ------------ > --- POWER ------------ Light Deuterium Engine > --- PROPULSION ------- Light Treads Light Treads Improved Treads > --- UTILITY ---------- Improved Heat Sink High-capacity Storage Unit Signal Interpreter Hacking Suite > --- WEAPON ----------- Advanced Beam Rifle Advanced Beam Rifle High-powered Shotgun > --- INVENTORY -------- Light Ion Engine Light Treads Light Treads Aluminum Leg Aluminum Leg Heat Sink Small Battery High-capacity Matter Pod Visual Processing Unit Experimental Sensor Array Improved Targeting Computer Core Shielding Propulsion Shielding Light Armor Plating Improved Medium Laser Ion Cannon Light Assault Rifle Light Assault Rifle Mining Claw [Rating: 29] Favorites ----------- Power Light Ion Engine Engine Light Ion Engine Power Core Light Nuclear Core Propulsion Light Treads Treads Light Treads Utility High-capacity Storage Unit Device Improved Heat Sink Storage High-capacity Storage Unit Processor Signal Interpreter Hackware Hacking Suite Protection Core Shielding Weapon Assault Rifle Energy Gun Advanced Beam Rifle Energy Cannon Beam Cannon Ballistic Gun Assault Rifle Ballistic Cannon Improved Light Cannon Build | -11 -10 -10 -10 -9 -8 ------- Run | Yrd Mat Min Exi Min Mat Slots Evolved 4 | . . . . . 4 Power . | . . . . . . Propulsion 1 | . . . . . 1 Utility 2 | . . . . . 2 Weapon 1 | . . . . . 1 Parts Attached 43 | 6 5 2 . 6 24 Power 7 | 1 . . . 2 4 Engine 4 | 1 . . . 1 2 Core 3 | . . . . 1 2 Reactor . | . . . . . . Propulsion 11 | 2 . . . 3 6 Treads 11 | 2 . . . 3 6 Leg . | . . . . . . Wheel . | . . . . . . Hover . | . . . . . . Flight . | . . . . . . Utility 12 | 1 4 1 . . 6 Device 2 | . . . . . 2 Storage 4 | 1 2 . . . 1 Processor 3 | . . 1 . . 2 Hackware 1 | . . . . . 1 Protection 2 | . 2 . . . . Artifact . | . . . . . . Weapon 13 | 2 1 1 . 1 8 Energy Gun 3 | . . . . . 3 Energy Cannon 4 | . 1 . . . 3 Ballistic Gun 5 | 2 . 1 . . 2 Ballistic Cannon 1 | . . . . 1 . Launcher . | . . . . . . Special Weapon . | . . . . . . Impact Weapon . | . . . . . . Slashing Weapon . | . . . . . . Piercing Weapon . | . . . . . . Special Melee Weapon . | . . . . . . Unidentified Prototypes 3 | . . . . . 3 Parts Lost 17 | . . . . 2 15 Power 2 | . . . . 1 1 Propulsion 4 | . . . . 1 3 Utility 4 | . . . . . 4 Weapon 7 | . . . . . 7 Highest Loss Streak 12 | . . . . 1 12 To Critical Strikes . | . . . . . . Average Slot Usage (%) 98 | . 99 100 100 99 91 Engine 11 | . 14 14 14 12 3 Core 1 | . . . . 1 4 Treads 27 | . 28 28 28 27 25 Device 1 | . . . . . 8 Storage 13 | . 23 14 14 14 9 Processor 10 | . . 3 14 14 10 Hackware 1 | . . . . . 7 Protection 1 | . 4 10 . . . Energy Gun 2 | . . . . . 12 Energy Cannon 9 | . 3 14 14 9 1 Ballistic Gun 12 | . 24 14 14 14 5 Ballistic Cannon 1 | . . . . 4 2 Naked Turns 4 | . . . . . 4 Heaviest Build 55 | 11 48 49 48 51 55 Greatest Support 63 | 40 40 40 40 40 63 Greatest Overweight (x) 15 | . 1 1 1 2 15 Average Overweight (x) . | . . 1 1 1 . Largest Inventory Capacity 20 | 8 20 20 20 20 20 Average Capacity 19 | 6 16 20 20 20 19 Most Carried 20 | 4 9 12 12 20 20 Average Carried 13 | 1 5 11 11 15 17 Final Capacity 20 | 8 20 20 20 20 5 Final Carried 20 | 2 9 12 12 20 1 Class Distribution -------------------- 70% | Mutant 22% | Scavenger-Mutant 7% | Scavenger-Gunner Dominant Class ---------------- Mutant | -10/Materials Mutant | -10/Mines Mutant | -10/Exiles Scavenger-Mutant | -9/Mines Scavenger-Mutant | -8/Materials Resources | -11 -10 -10 -10 -9 -8 ----------- Run | Yrd Mat Min Exi Min Mat Matter Collected 926 | 189 108 150 10 126 343 Remotely . | . . . . . . Salvage Created 1228 | . 108 119 . 282 719 Parts 85 | . 10 5 . 21 49 Haulers Intercepted 1 | . . . . . 1 Recyclers Shooed . | . . . . . . Parts Field Recycled . | . . . . . . Retrieved Matter . | . . . . . . Parts Self-Destructed . | . . . . . . Prevented . | . . . . . . Kills | -11 -10 -10 -10 -9 -8 ------- Run | Yrd Mat Min Exi Min Mat Combat Hostiles Destroyed 33 | . 2 5 . 8 18 Melee 1 | . . . . 1 . Guns 24 | . 2 2 . 4 16 Cannons 7 | . . 3 . 3 1 Classes Destroyed 12 | . 2 1 . 2 7 Worker 1 | . . . . . 1 Builder 1 | . . . . . 1 Hauler 1 | . . . . . 1 Recycler 1 | . . . . . 1 Watcher 1 | . 1 . . . . Swarmer 15 | . . 3 . 2 10 Grunt 8 | . 2 2 . 3 1 Brawler 1 | . . . . 1 . Sentry 5 | . . . . 2 3 Specialist 2 | . . . . . 2 Hunter 1 | . . . . . 1 Heavy 1 | . . . . . 1 Best Kill Streak 4 | . 2 3 . 2 4 Combat Bots Only 4 | . 2 3 . 2 4 Max Kills in Single Turn 2 | . 1 1 . 1 2 Gunslinging . | . . . . . . Exploded . | . . . . . . Melee 1 | . . . . 1 . Uniques/NPCs Destroyed . | . . . . . . Combat | -11 -10 -10 -10 -9 -8 -------- Run | Yrd Mat Min Exi Min Mat Hostile Shots Fired 270 | . 14 28 . 32 196 Missed 76 | . 4 3 . 10 59 Damage Taken 2961 | . 108 237 . 269 2347 Core 657 | . 8 21 . 62 566 Absorbed by Shields . | . . . . . . Redirected to Shielding 6 | . 2 4 . . . Core Remaining (%) 81 | 100 . . . 63 . Volleys Fired 114 | . 17 12 . 19 66 Largest 3 | . 2 2 . 2 3 Hottest 182 | . 80 80 . 80 182 Shots Fired 246 | . 34 24 . 38 150 Gun 173 | . 29 12 . 19 113 Cannon 73 | . 5 12 . 19 37 Launcher . | . . . . . . Special . | . . . . . . Kinetic 111 | . 29 12 . 25 45 Thermal 135 | . 5 12 . 13 105 Explosive . | . . . . . . Electromagnetic . | . . . . . . Robot Hit Streak 13 | . 9 4 . 10 13 Robot Miss Streak 8 | . 8 3 . 2 5 Penetration Max . | . . . . . . Secondary Targets 1 | . . . . . 1 Max Gunslinging Chain 1 | . . . . . 1 Shots Hit Robots 134 | . 16 14 . 26 78 Core Hits 57 | . 5 9 . 12 31 Critical Kills 1 | . . . . 1 . Critical Parts Destroyed . | . . . . . . Critical Strikes 6 | . . . . 1 5 Burn 5 | . . . . . 5 Destroy 1 | . . . . 1 . Melee Attacks . | . . . . . . Impact . | . . . . . . Slashing . | . . . . . . Piercing . | . . . . . . Sneak Attacks . | . . . . . . Combat Hostiles . | . . . . . . Follow-up Attacks . | . . . . . . Damage Inflicted 2286 | . 172 176 . 415 1523 Guns 1598 | . 155 53 . 193 1197 Cannons 684 | . 17 123 . 218 326 Explosions . | . . . . . . Melee . | . . . . . . Ramming 4 | . . . . 4 . Kinetic 797 | . 155 53 . 237 352 Thermal 1485 | . 17 123 . 174 1171 Explosive . | . . . . . . Electromagnetic . | . . . . . . Impact . | . . . . . . Slashing . | . . . . . . Piercing . | . . . . . . Highest Corruption . | . . . . . . Average Corruption . | . . . . . . Corruption Purged . | . . . . . . Corruption Blocked . | . . . . . . Overload Shots . | . . . . . . Overflow Damage 7 | . . . . . 7 Projectiles 7 | . . . . . 7 Explosions . | . . . . . . Melee . | . . . . . . Knockbacks 5 | . . . . . 5 Impact . | . . . . . . Kinetic 3 | . . . . . 3 Secondary 2 | . . . . . 2 Self-Inflicted Damage . | . . . . . . Shots . | . . . . . . Rammed 1 | . . . . 1 . Targets Rammed 2 | . . . . 2 . Kicked . | . . . . . . Crushed 1 | . . . . 1 . Highest Temperature 599 | . 120 180 . 84 599 Average Temperature 132 | . 47 94 . 32 188 Received Heat Transfer 933 | . 60 57 . 132 684 Effects 23 | . . . . . 23 Energy Bleed 1 | . . . . . 1 Interference 2 | . . . . . 2 Matter Decay 2 | . . . . . 2 Short Circuit 1 | . . . . . 1 Damage (minor) 1 | . . . . . 1 Damage (major) 13 | . . . . . 13 Damage (core) 3 | . . . . . 3 Siege Activations . | . . . . . . Robots Corrupted . | . . . . . . Combat Hostiles . | . . . . . . Parts Fried . | . . . . . . Impact Corruptions 2 | . . . . . 2 Robots Melted 1 | . . . . . 1 Combat Hostiles 1 | . . . . . 1 Parts Melted 6 | . . . . 1 5 Heat Transferred 3293 | . 37 259 . 370 2627 Parts Sabotaged . | . . . . . . Parts Stolen . | . . . . . . Parts Stripped . | . . . . . . Power Chain Reactions . | . . . . . . Alert | -11 -10 -10 -10 -9 -8 ------- Run | Yrd Mat Min Exi Min Mat Peak Influence 261 | . 62 150 . 120 261 Initial 11 | . . 11 . . 1 Average 70 | . 42 45 . 33 138 Maximum Alert Level 1 | . . . . . 1 Low Security (%) 91 | 100 100 100 . 100 74 Level 1 8 | . . . . . 25 Level 2 . | . . . . . . Level 3 . | . . . . . . Level 4 . | . . . . . . Level 5 . | . . . . . . High Security . | . . . . . . Max Security . | . . . . . . Squads Dispatched 3 | . 1 . . . 2 Investigation . | . . . . . . Extermination . | . . . . . . Reinforcement 3 | . 1 . . . 2 Assault . | . . . . . . Garrison . | . . . . . . Intercept . | . . . . . . Searches Triggered . | . . . . . . Construction Impeded . | . . . . . . Haulers Reinforced . | . . . . . . Active Scanning Responses . | . . . . . . Cargo Convoy Interrupts . | . . . . . . Stealth | -11 -10 -10 -10 -9 -8 --------- Run | Yrd Mat Min Exi Min Mat Distress Signals . | . . . . . . Communications Jammed . | . . . . . . Distress Signals . | . . . . . . Times Spotted 47 | . 8 5 . 11 23 Peak Tracking Total 4 | . 2 3 . 4 4 Tactical Retreats 3 | . . . . 2 1 Traps | -11 -10 -10 -10 -9 -8 ------- Run | Yrd Mat Min Exi Min Mat Traps Triggered 1 | . . . . . 1 Indirectly . | . . . . . . Trap Hack Attempts . | . . . . . . Triggered . | . . . . . . Disarmed . | . . . . . . Reprogrammed . | . . . . . . Reused . | . . . . . . Traps Extracted . | . . . . . . Installed . | . . . . . . Triggered . | . . . . . . Machines | -11 -10 -10 -10 -9 -8 ---------- Run | Yrd Mat Min Exi Min Mat Machines Disabled 4 | . . . . 1 3 Max in Single Turn 1 | . . . . 1 1 Machines Repaired . | . . . . . . Machines Dismantled . | . . . . . . Machines Sabotaged . | . . . . . . Overloaded Fab Kills . | . . . . . . Hacking | -11 -10 -10 -10 -9 -8 --------- Run | Yrd Mat Min Exi Min Mat Machines Accessed 10 | . 1 1 4 1 3 Terminals 6 | . 1 1 . 1 3 Fabricators . | . . . . . . Repair Stations . | . . . . . . Recycling Units . | . . . . . . Scanalyzers . | . . . . . . Garrison Access . | . . . . . . Total Hacks 60 | . 1 2 49 1 7 Successful 57 | . . 1 49 1 6 Failed 3 | . 1 1 . . 1 Catastrophic 2 | . 1 . . . 1 Database Lockouts . | . . . . . . Manual 17 | . . . 17 . . Terminals 11 | . 1 2 . 1 7 Fabricators . | . . . . . . Repair Stations . | . . . . . . Recycling Units . | . . . . . . Scanalyzers . | . . . . . . Garrison Access . | . . . . . . Terminal Hacks 57 | . . 1 49 1 6 Record 53 | . . . 49 . 4 Prototype ID Bank 1 | . . . . . 1 Dispatch Records 1 | . . 1 . . . Zone Layout 2 | . . . . 1 1 Fabricator Hacks . | . . . . . . Repair Station Hacks . | . . . . . . Recycling Unit Hacks . | . . . . . . Scanalyzer . | . . . . . . Garrison Access Hacks . | . . . . . . Unauthorized Hacks . | . . . . . . Terminals . | . . . . . . Fabricators . | . . . . . . Repair Stations . | . . . . . . Recycling Units . | . . . . . . Scanalyzers . | . . . . . . Garrison Access . | . . . . . . Data Cores Recovered . | . . . . . . Used . | . . . . . . Hacking Detections 5 | . 1 . . 1 3 Full Trace Events . | . . . . . . Feedback Events . | . . . . . . Feedback Blocked . | . . . . . . Robot Schematics Acquired . | . . . . . . Robots Built . | . . . . . . Authchips . | . . . . . . Time . | . . . . . . Total Robot Build Rating . | . . . . . . Part Schematics Acquired . | . . . . . . Parts Built . | . . . . . . Authchips . | . . . . . . Time . | . . . . . . Total Part Build Rating . | . . . . . . Parts Repaired . | . . . . . . Time . | . . . . . . Parts Recycled . | . . . . . . Recycled Matter . | . . . . . . Retrieved Matter . | . . . . . . Retrieved Components . | . . . . . . Parts Scanalyzed . | . . . . . . Part Schematics Acquired . | . . . . . . Parts Damaged . | . . . . . . Bothacking | -11 -10 -10 -10 -9 -8 ------------ Run | Yrd Mat Min Exi Min Mat Used RIF Installer . | . . . . . . Robots Hacked . | . . . . . . Non-combat . | . . . . . . Combat . | . . . . . . Robot Hacks Applied . | . . . . . . Relay Couplers Released . | . . . . . . Fabnet Peak Effective % . | . . . . . . Robots Rewired . | . . . . . . Allies Hacked . | . . . . . . Hacks Repelled . | . . . . . . Allies | -11 -10 -10 -10 -9 -8 -------- Run | Yrd Mat Min Exi Min Mat Total Allies 2 | . . 2 . . . Largest Group 2 | . . 2 2 . . Highest-Rated Group 39 | . . 39 39 . . Highest-Rated Ally 31 | . . 31 31 . . Total Orders . | . . . . . . Ally Attacks . | . . . . . . Total Damage . | . . . . . . Kills . | . . . . . . Allies Corrupted . | . . . . . . Allies Melted . | . . . . . . Intel | -11 -10 -10 -10 -9 -8 ------- Run | Yrd Mat Min Exi Min Mat Robot Analysis Total . | . . . . . . Derelict Logs Recovered 2 | . . 1 . 1 . Drone Launches . | . . . . . . Drone Recoveries . | . . . . . . Exploration | -11 -10 -10 -10 -9 -8 ------------- Run | Yrd Mat Min Exi Min Mat Turns Passed 6666 | 98 467 809 2628 1330 1334 Spaces Moved 2817 | 61 186 310 1093 513 654 Core 16 | 11 . . . . 5 Treads 2801 | 50 186 310 1093 513 649 Legs . | . . . . . . Wheels . | . . . . . . Hover . | . . . . . . Flight . | . . . . . . Fastest Speed 50 | 50 160 240 240 240 50 Average Speed 218 | 140 217 240 240 240 161 Slowest Speed 800 | 160 240 240 240 320 800 Overloaded Moves . | . . . . . . Propulsion Burnouts . | . . . . . . Robots Hopped . | . . . . . . Cave-ins Triggered . | . . . . . . Exploration Rate (%) 52 | 4 26 59 93 82 48 Regions Visited 5 Branch Regions 3 Pre-discovered Areas 2 | . . . 1 1 . Known Exits Taken 3 | . . 1 1 1 . Unknown Exits Taken 2 | 1 1 . . . . Scrap Searched 4 | . . 2 . 2 . Spaces Dug . | . . . . . . Terrain Destroyed . | . . . . . . Melee . | . . . . . . Projectile . | . . . . . . AOE . | . . . . . . Terrain Rammed . | . . . . . . Walls Destroyed . | . . . . . . Machines Disabled . | . . . . . . Actions | -11 -10 -10 -10 -9 -8 --------- Run | Yrd Mat Min Exi Min Mat Total 3113 | 74 218 353 1099 568 801 Wait 66 | . . 27 . 15 24 Move 2812 | 60 185 309 1092 512 654 Hop . | . . . . . . Pick Up 47 | 8 9 3 1 12 14 Fast Attach . | . . . . . . Attach 25 | 6 2 . . 3 14 Detach 1 | . 1 . . . . Swap 18 | . 3 2 . 3 10 Drop 23 | . 1 . 1 2 19 Fire 114 | . 17 12 . 19 66 Melee . | . . . . . . Ram . | . . . . . . Kick . | . . . . . . Crush 2 | . . . . 2 . Escape Stasis . | . . . . . . Rewire 5 | . . . 5 . . Trap . | . . . . . . Miscellaneous . | . . . . . . Route ------- -11/Scrapyard -10/Materials -10/Mines (discovered 2 exits: *Mat / *Exi) -10/Exiles (discovered 2 exits: *Min x2) -9/Mines (discovered 2 exits: *Mat x2) -8/Materials (discovered 1 exit: *Fac) History --------- Turn | Location | Event 57 | -11/Scrapyard | Discovered new exit (range 15) 99 | -11/Scrapyard | Entered Materials 317 | -10/Materials | Build established: Mutant 472 | -10/Materials | Discovered new exit (range 9) 566 | -10/Materials | Entered Mines 707 | -10/Mines | Found a damaged Exp. Sensor Array with a note attached 712 | -10/Mines | Found Prototype Device 1070 | -10/Mines | Learned location of 1 exit from Materials 1077 | -10/Mines | Discovered new exit (range 6) 1182 | -10/Mines | Identified exit to Materials 1358 | -10/Mines | Deemed a non-threat by the Exiles lab entrance 1360 | -10/Mines | Discovered new exit (range 5) 1370 | -10/Mines | Identified exit to Exiles 1375 | -10/Mines | Entered Exiles 1375 | -10/Exiles | Accompanied by 2 allies 1405 | -10/Exiles | Led the pair of lost Derelicts to a safe place 1433 | -10/Exiles | Discovered new exit (range 15) 1476 | -10/Exiles | Identified exit to Mines 1548 | -10/Exiles | Met 8R-AWN 1587 | -10/Exiles | Met EX-HEX 1767 | -10/Exiles | Met EX-DEC 1811 | -10/Exiles | Visited The Gauntlet 2223 | -10/Exiles | Learned location of Zion (-7) 2380 | -10/Exiles | Discovered exit to Mines (range 14) 2644 | -10/Exiles | Met EX-BIN 4003 | -10/Exiles | Entered Mines 4889 | -9/Mines | Build established: Scavenger-Mutant 5290 | -9/Mines | Discovered new exit (range 5) 5306 | -9/Mines | Identified exit to Materials 5321 | -9/Mines | Discovered exit to Materials (range 19) 5333 | -9/Mines | Entered Materials 5333 | -8/Materials | Evolved 4 slots: Propulsion x1, Utility x2, Weapon x1 5334 | -8/Materials | Identified exit to Factory 6548 | -8/Materials | Build established: Scavenger-Gunner 6565 | -8/Materials | Identified Exp. Sensor Array 6629 | -8/Materials | Core integrity fell below 50% 6649 | -8/Materials | Core integrity fell below 20% 6667 | -8/Materials | Destroyed by G-47 Trooper with Particle Gun Last Messages --------------- Adv. Beam Rifle broken. Overheating: Short circuit. Broken Adv. Beam Rifle destroyed. Critical hit (Burn: +37). Overheating: System interference. Exp. Sensor Array temporarily disabled. Exp. Sensor Array destroyed. Overheating: Energy bleed (-14). Hacking Suite destroyed. Dropped Sml. Battery. Discarded Imp. Targeting Computer. Dropped Hcp. Storage Unit. Extracted 15 energy. Dropped Ion Cannon. Dropped Lgt. Assault Rifle. Extracted 15 energy. Dropped Heat Sink. Dropped Visual Processing Unit. Dropped Lgt. Armor Plating. Dropped Propulsion Shielding. Map ----- +----------------------------------------------------+ | ???????????????????##!!!!##??????? | | ???????????????????#! !#??????? | | ?????????????####### #??????? | | ?????????????# # ######## | | ?????????????# | | ?????????????# | | ?????????????# | | ?????????????# ###+########### | | ?????????????## ## /#??????? | | ??????????????# ## #?????## | | ??????????????# ## """#?????# | | ??????????????# ## """#?????# | | ??????????????# ## """#?????# | | ??????????????# ## #?????# | | ??????????????# ################ | | ??????????????# | | ??????????????# | | ??????????????# | | ??????????????# "" """^ | | ???#??????????# " """ | | ???# ?????????# """ | | ???# ????????## | | ???#+#####+### g | | ???# " """ | | ???# !![! % g " """ | | ???# %!%@=![= *[!g "" "" | | ???# !=%!!*= %[ | | ???# #########+###### ^ | | ???# #???# =[*= ## " !! | | ???# #???# = ## "" !! | | ???# #???# ## """ !! | | ???# #???# ## | | ???# #???# ## | | ???# #???# ## #####+## | | ???# #???# ## ## | | ???# < ????# ## ## ! | | ???# ????#########+## ## ! | | ???####????????????# + | | ??????????########## ## ] | | ?????? ]! ## | | ?????? ]! ## * | | ?????? ## ! | | ??????? """ + ! | | ??????? """ ######### | | ?????? """ #???????? | | ?????? ######### | | ?????? | | ????????############"Y"########### | | ???????????????????#"""#?????????? | | ???????????????????#####?????????? | +----------------------------------------------------+ Best States ------------- Heat Dissipation 45 Energy Generation 14 Energy Capacity 250 Matter Stores 300 Matter Capacity 300 Sight Range 16 Robot Scan Range 20 Terrain Scan Density 10 Core Shielding 20 Evasion (%) 40 Targeting Accuracy 6 Recoil Reduction 3 Offensive Hacking 10 Item Schematics ----------------- None Robot Schematics ------------------ None Fabricated ------------ Nothing Alien Tech Used ----------------- None Achievements -------------- It's Just You Librarian Tourist Challenges ------------ None Game ------ Seed CooledMissileDatajack Manual? 0 Play Time 00:56:11 Cumulative 5.0 hours Start 2024.07.07 @ 21:33:15 End 2024.07.07 @ 22:36:08 Sessions 1 Manual Loads 0 Difficulty Rogue Special Mode None Game No. 9 Rogue 9 Adventurer 0 Explorer 0 Win Type - Total 0 Types 0/0/0/0/0/0/0/0/0 Lore% 10 Gallery% 7 Achievement% 7 Wizard Run 0 Options --------- Layout 1 ASCII 0 Keyboard 0 Movement Arrows Keybinds 0 Fullscreen 1 Font 28/Dina Map View 50x43 Zoom Use 0% Tactical HUD 0 Map Filters NONE Filters NONE Steam 1 RUN: 7847d5ba-bb18-4669-be29-b4c013f4d995